[Event "December 19 Late 2023"]
[Site "https://www.chess.com"]
[Date "2023.12.19"]
[Round "11"]
[White "Rama, Tejas"]
[Black "slidingknight2775"]
[Result "0-1"]
[Board "36"]
[TimeControl "180+1"]
[WhiteFideId "30907381"]
[WhiteElo "2089"]
[BlackElo "2656"]
[WhiteTeam "USA"]
[WhiteClock "0:00:04"]
[BlackClock "0:00:08"]

1. d4 {[%clk 0:02:57]}  d5 {[%clk 0:02:59]} 2. c4 {[%clk 0:02:57]}  e6 {[%clk 0:03:00]} 3. Nf3 {[%clk 0:02:55]}  Nf6 {[%clk 0:03:00]} 4. Nc3 {[%clk 0:02:55]}  a6 {[%clk 0:03:00]} 5. c5 {[%clk 0:02:54]}  b6 {[%clk 0:02:59]} 6. cxb6 {[%clk 0:02:53]}  c5 {[%clk 0:02:59]} 7. Bf4 {[%clk 0:02:48]}  Qxb6 {[%clk 0:02:50]} 8. Na4 {[%clk 0:02:47]}  Qa7 {[%clk 0:02:34]} 9. dxc5 {[%clk 0:02:38]}  Bxc5 {[%clk 0:01:53]} 10. Nxc5 {[%clk 0:02:34]}  Qxc5 {[%clk 0:01:54]} 11. Rc1 {[%clk 0:02:31]}  Qa5+ {[%clk 0:01:54]} 12. Bd2 {[%clk 0:02:27]}  Qd8 {[%clk 0:01:53]} 13. Bb4 {[%clk 0:02:24]}  a5 {[%clk 0:01:45]} 14. Ba3 {[%clk 0:02:19]}  Ba6 {[%clk 0:01:44]} 15. Ne5 {[%clk 0:02:09]}  Nbd7 {[%clk 0:01:28]} 16. Qa4 {[%clk 0:01:18]}  Rc8 {[%clk 0:01:01]} 17. Rxc8 {[%clk 0:00:49]}  Qxc8 {[%clk 0:01:02]} 18. Nc6 {[%clk 0:00:30]}  Nb6 {[%clk 0:00:32]} 19. Qc2 {[%clk 0:00:28]}  Nc4 {[%clk 0:00:27]} 20. Nd4 {[%clk 0:00:20]}  Nxa3 {[%clk 0:00:22]} 21. Qxc8+ {[%clk 0:00:21]}  Bxc8 {[%clk 0:00:22]} 22. bxa3 {[%clk 0:00:22]}  Ba6 {[%clk 0:00:18]} 23. e3 {[%clk 0:00:21]}  Bxf1 {[%clk 0:00:18]} 24. Rxf1 {[%clk 0:00:22]}  Kd7 {[%clk 0:00:18]} 25. Kd2 {[%clk 0:00:20]}  Rb8 {[%clk 0:00:19]} 26. Nb3 {[%clk 0:00:18]}  Kd6 {[%clk 0:00:14]} 27. a4 {[%clk 0:00:15]}  Ne4+ {[%clk 0:00:13]} 28. Kc2 {[%clk 0:00:14]}  Rb4 {[%clk 0:00:11]} 29. f3 {[%clk 0:00:09]}  Nc5 {[%clk 0:00:10]} 30. Nxa5 {[%clk 0:00:03]}  Rxa4 {[%clk 0:00:09]} 31. Nb3 {[%clk 0:00:04]}  Rxa2+ {[%clk 0:00:09]} 32. Kb1 {[%clk 0:00:04]}  Rxg2 {[%clk 0:00:06]} 33. Nxc5 {[%clk 0:00:04]}  Kxc5 {[%clk 0:00:07]} 34. h4 {[%clk 0:00:04]}  Kd6 {[%clk 0:00:06]} 35. Kc1 {[%clk 0:00:04]}  h6 {[%clk 0:00:06]} 36. Kd1 {[%clk 0:00:04]}  g5 {[%clk 0:00:07]} 37. hxg5 {[%clk 0:00:04]}  hxg5 {[%clk 0:00:08]} 38. Ke1 {[%clk 0:00:05]}  Ra2 {[%clk 0:00:08]} 39. Rh1 {[%clk 0:00:04]}  Ra1+ {[%clk 0:00:08]} 0-1

[Event "December 19 Late 2023"]
[Site "https://www.chess.com"]
[Date "2023.12.19"]
[Round "11"]
[White "Gallegos Diaz, Carlos Alberto"]
[Black "Vlassov, Nikolai"]
[Result "0-1"]
[Board "39"]
[TimeControl "180+1"]
[WhiteFideId "3900886"]
[BlackFideId "4103360"]
[WhiteElo "2362"]
[BlackElo "2351"]
[WhiteTeam "VEN"]
[BlackTeam "FID"]
[WhiteClock "0:00:00"]
[BlackClock "0:00:34"]

1. e4 {[%clk 0:03:00]}  Nc6 {[%clk 0:02:58]} 2. d3 {[%clk 0:02:59]}  Nf6 {[%clk 0:02:56]} 3. Nf3 {[%clk 0:02:58]}  e5 {[%clk 0:02:52]} 4. Be2 {[%clk 0:02:57]}  Bc5 {[%clk 0:02:48]} 5. O-O {[%clk 0:02:56]}  d5 {[%clk 0:02:46]} 6. Nbd2 {[%clk 0:02:55]}  O-O {[%clk 0:02:41]} 7. c3 {[%clk 0:02:54]}  a5 {[%clk 0:02:39]} 8. Qc2 {[%clk 0:02:45]}  h6 {[%clk 0:02:39]} 9. h3 {[%clk 0:02:44]}  b6 {[%clk 0:02:39]} 10. Re1 {[%clk 0:02:43]}  Ba6 {[%clk 0:02:37]} 11. exd5 {[%clk 0:02:43]}  Qxd5 {[%clk 0:02:28]} 12. Ne4 {[%clk 0:02:41]}  Be7 {[%clk 0:02:26]} 13. Bf1 {[%clk 0:02:36]}  Rad8 {[%clk 0:02:24]} 14. Ng3 {[%clk 0:01:55]}  Bxd3 {[%clk 0:02:05]} 15. Bxd3 {[%clk 0:01:54]}  Qxd3 {[%clk 0:02:05]} 16. Qxd3 {[%clk 0:01:49]}  Rxd3 {[%clk 0:02:06]} 17. Nxe5 {[%clk 0:01:42]}  Nxe5 {[%clk 0:02:05]} 18. Rxe5 {[%clk 0:01:41]}  Rd1+ {[%clk 0:02:06]} 19. Nf1 {[%clk 0:01:31]}  Bd6 {[%clk 0:01:57]} 20. Re2 {[%clk 0:01:31]}  Bf4 {[%clk 0:01:31]} 21. Rc2 {[%clk 0:00:21]}  Re8 {[%clk 0:01:26]} 22. g3 {[%clk 0:00:21]}  Ree1 {[%clk 0:01:16]} 23. gxf4 {[%clk 0:00:21]}  Rxf1+ {[%clk 0:01:16]} 24. Kg2 {[%clk 0:00:22]}  Nd5 {[%clk 0:01:08]} 25. Kf3 {[%clk 0:00:20]}  f5 {[%clk 0:01:07]} 26. b3 {[%clk 0:00:18]}  Kf7 {[%clk 0:01:07]} 27. a4 {[%clk 0:00:17]}  c5 {[%clk 0:00:59]} 28. b4 {[%clk 0:00:15]}  axb4 {[%clk 0:00:57]} 29. cxb4 {[%clk 0:00:16]}  Nxb4 {[%clk 0:00:56]} 30. Rc3 {[%clk 0:00:16]}  Nd3 {[%clk 0:00:55]} 31. a5 {[%clk 0:00:07]}  bxa5 {[%clk 0:00:53]} 32. Rxa5 {[%clk 0:00:06]}  Nxc1 {[%clk 0:00:48]} 33. Rcxc5 {[%clk 0:00:04]}  Rd2 {[%clk 0:00:37]} 34. Rc7+ {[%clk 0:00:03]}  Kg6 {[%clk 0:00:35]} 35. Ra6+ {[%clk 0:00:03]}  Kh7 {[%clk 0:00:34]} 36. Raa7 {[%clk 0:00:00]}  Rfxf2+ {[%clk 0:00:34]} 0-1

[Event "December 19 Late 2023"]
[Site "https://www.chess.com"]
[Date "2023.12.19"]
[Round "11"]
[White "Sabuk, Piotr"]
[Black "Vargas Rodriguez, Wilver"]
[Result "1-0"]
[Board "40"]
[TimeControl "180+1"]
[WhiteFideId "1137565"]
[BlackFideId "3509672"]
[WhiteElo "2276"]
[BlackElo "2210"]
[WhiteTeam "POL"]
[BlackTeam "CUB"]
[WhiteClock "0:00:08"]
[BlackClock "0:00:00"]

1. d4 {[%clk 0:03:00]}  Nf6 {[%clk 0:02:58]} 2. c4 {[%clk 0:03:00]}  c5 {[%clk 0:02:58]} 3. d5 {[%clk 0:03:00]}  b5 {[%clk 0:02:58]} 4. cxb5 {[%clk 0:03:00]}  a6 {[%clk 0:02:58]} 5. bxa6 {[%clk 0:03:00]}  d6 {[%clk 0:02:56]} 6. Nc3 {[%clk 0:02:59]}  Bxa6 {[%clk 0:02:51]} 7. Nf3 {[%clk 0:02:58]}  g6 {[%clk 0:02:51]} 8. e4 {[%clk 0:02:58]}  Bxf1 {[%clk 0:02:48]} 9. Kxf1 {[%clk 0:02:59]}  Bg7 {[%clk 0:02:49]} 10. g3 {[%clk 0:03:00]}  O-O {[%clk 0:02:49]} 11. Kg2 {[%clk 0:03:00]}  Na6 {[%clk 0:02:48]} 12. Qe2 {[%clk 0:02:54]}  Ng4 {[%clk 0:02:46]} 13. Bd2 {[%clk 0:02:51]}  Ne5 {[%clk 0:02:43]} 14. Nxe5 {[%clk 0:02:43]}  Bxe5 {[%clk 0:02:44]} 15. Rhb1 {[%clk 0:02:42]}  Nb4 {[%clk 0:02:42]} 16. Bh6 {[%clk 0:02:35]}  Re8 {[%clk 0:02:37]} 17. a3 {[%clk 0:02:33]}  Na6 {[%clk 0:02:26]} 18. Bd2 {[%clk 0:02:21]}  Qb6 {[%clk 0:02:19]} 19. Nd1 {[%clk 0:02:12]}  Qb3 {[%clk 0:02:11]} 20. Bc3 {[%clk 0:02:11]}  Reb8 {[%clk 0:02:05]} 21. Bxe5 {[%clk 0:02:10]}  dxe5 {[%clk 0:02:06]} 22. Ne3 {[%clk 0:02:10]}  Nc7 {[%clk 0:01:55]} 23. Nc4 {[%clk 0:02:10]}  f6 {[%clk 0:01:55]} 24. d6 {[%clk 0:01:42]}  exd6 {[%clk 0:01:56]} 25. Nxd6 {[%clk 0:01:42]}  Ne6 {[%clk 0:01:53]} 26. Qc4 {[%clk 0:01:26]}  Ra4 {[%clk 0:01:34]} 27. Qd5 {[%clk 0:00:58]}  Rd4 {[%clk 0:01:19]} 28. Qxb3 {[%clk 0:00:57]}  Rxb3 {[%clk 0:01:18]} 29. Rd1 {[%clk 0:00:57]}  Rxb2 {[%clk 0:01:15]} 30. a4 {[%clk 0:00:48]}  Rxd1 {[%clk 0:01:12]} 31. Rxd1 {[%clk 0:00:49]}  Ra2 {[%clk 0:01:12]} 32. Nc4 {[%clk 0:00:31]}  Rxa4 {[%clk 0:01:09]} 33. Rc1 {[%clk 0:00:31]}  Ra2 {[%clk 0:00:59]} 34. h4 {[%clk 0:00:30]}  h5 {[%clk 0:00:59]} 35. Kf3 {[%clk 0:00:27]}  Nd4+ {[%clk 0:00:58]} 36. Ke3 {[%clk 0:00:27]}  Re2+ {[%clk 0:00:52]} 37. Kd3 {[%clk 0:00:27]}  Rxf2 {[%clk 0:00:52]} 38. Ne3 {[%clk 0:00:26]}  Nb3 {[%clk 0:00:40]} 39. Rc3 {[%clk 0:00:24]}  Rd2+ {[%clk 0:00:18]} 40. Kc4 {[%clk 0:00:24]}  Nd4 {[%clk 0:00:13]} 41. Nd5 {[%clk 0:00:17]}  Kf7 {[%clk 0:00:07]} 42. Kxc5 {[%clk 0:00:15]}  Rc2 {[%clk 0:00:08]} 43. Rxc2 {[%clk 0:00:08]}  Nxc2 {[%clk 0:00:09]} 44. Kc4 {[%clk 0:00:08]}  Nd4 {[%clk 0:00:09]} 45. Kd3 {[%clk 0:00:08]}  Ne6 {[%clk 0:00:09]} 46. Ke3 {[%clk 0:00:08]}  Nc5 {[%clk 0:00:09]} 47. Kf3 {[%clk 0:00:07]}  Ke6 {[%clk 0:00:09]} 48. Ne3 {[%clk 0:00:08]}  Nd7 {[%clk 0:00:09]} 49. g4 {[%clk 0:00:08]}  hxg4+ {[%clk 0:00:09]} 50. Kxg4 {[%clk 0:00:08]}  Nb6 {[%clk 0:00:09]} 51. h5 {[%clk 0:00:07]}  gxh5+ {[%clk 0:00:09]} 52. Kxh5 {[%clk 0:00:07]}  Nd7 {[%clk 0:00:09]} 53. Kg4 {[%clk 0:00:08]}  Nc5 {[%clk 0:00:09]} 54. Kf3 {[%clk 0:00:08]}  Nd3 {[%clk 0:00:09]} 55. Ng4 {[%clk 0:00:06]}  Nb4 {[%clk 0:00:08]} 56. Ne3 {[%clk 0:00:06]}  Nc6 {[%clk 0:00:08]} 57. Ng4 {[%clk 0:00:05]}  Nd4+ {[%clk 0:00:07]} 58. Ke3 {[%clk 0:00:05]}  Nc6 {[%clk 0:00:06]} 59. Nf2 {[%clk 0:00:05]}  Ne7 {[%clk 0:00:06]} 60. Kf3 {[%clk 0:00:05]}  Kd6 {[%clk 0:00:05]} 61. Ke3 {[%clk 0:00:06]}  Nc6 {[%clk 0:00:04]} 62. Ng4 {[%clk 0:00:05]}  Ke6 {[%clk 0:00:04]} 63. Nf2 {[%clk 0:00:06]}  Kf7 {[%clk 0:00:04]} 64. Kf3 {[%clk 0:00:06]}  Kg6 {[%clk 0:00:05]} 65. Nd1 {[%clk 0:00:05]}  Nd4+ {[%clk 0:00:06]} 66. Ke3 {[%clk 0:00:04]}  Ne6 {[%clk 0:00:07]} 67. Nf2 {[%clk 0:00:04]}  Ng5 {[%clk 0:00:07]} 68. Ng4 {[%clk 0:00:04]}  Nf7 {[%clk 0:00:07]} 69. Nf2 {[%clk 0:00:04]}  Nh6 {[%clk 0:00:07]} 70. Nd3 {[%clk 0:00:05]}  Kg5 {[%clk 0:00:08]} 71. Kf3 {[%clk 0:00:05]}  Nf7 {[%clk 0:00:07]} 72. Nc5 {[%clk 0:00:05]}  Nd6 {[%clk 0:00:06]} 73. Ne6+ {[%clk 0:00:06]}  Kh5 {[%clk 0:00:06]} 74. Nc5 {[%clk 0:00:06]}  Nb5 {[%clk 0:00:06]} 75. Nd7 {[%clk 0:00:06]}  Nd4+ {[%clk 0:00:05]} 76. Ke3 {[%clk 0:00:06]}  Kg5 {[%clk 0:00:05]} 77. Nc5 {[%clk 0:00:06]}  Kg4 {[%clk 0:00:05]} 78. Nd7 {[%clk 0:00:06]}  Kg5 {[%clk 0:00:05]} 79. Nc5 {[%clk 0:00:06]}  Nc2+ {[%clk 0:00:05]} 80. Kd3 {[%clk 0:00:06]}  Nb4+ {[%clk 0:00:05]} 81. Ke3 {[%clk 0:00:07]}  Nc6 {[%clk 0:00:05]} 82. Nd7 {[%clk 0:00:07]}  Nd8 {[%clk 0:00:05]} 83. Kf3 {[%clk 0:00:06]}  Ne6 {[%clk 0:00:05]} 84. Ke3 {[%clk 0:00:07]}  Ng7 {[%clk 0:00:04]} 85. Kf3 {[%clk 0:00:07]}  Nh5 {[%clk 0:00:05]} 86. Ke3 {[%clk 0:00:08]}  Kg4 {[%clk 0:00:04]} 87. Nc5 {[%clk 0:00:07]}  Kg3 {[%clk 0:00:03]} 88. Nd7 {[%clk 0:00:07]}  Kg4 {[%clk 0:00:04]} 89. Nc5 {[%clk 0:00:07]}  Kg5 {[%clk 0:00:04]} 90. Nd7 {[%clk 0:00:07]}  Nf4 {[%clk 0:00:04]} 91. Kf3 {[%clk 0:00:08]}  Ng6 {[%clk 0:00:02]} 92. Nc5 {[%clk 0:00:08]}  Nh4+ {[%clk 0:00:01]} 93. Kg3 {[%clk 0:00:07]}  Ng6 {[%clk 0:00:00]} 94. Ne6+ {[%clk 0:00:08]} 1-0

[Event "December 19 Late 2023"]
[Site "https://www.chess.com"]
[Date "2023.12.19"]
[Round "11"]
[White "Tanenbaum, Zachary"]
[Black "Rees, Ioan"]
[Result "1-0"]
[Board "42"]
[TimeControl "180+1"]
[WhiteFideId "2060850"]
[BlackFideId "1801236"]
[WhiteElo "2256"]
[BlackElo "2270"]
[WhiteTeam "USA"]
[BlackTeam "WLS"]
[WhiteClock "0:03:02"]
[BlackClock "0:02:23"]

1. e4 {[%clk 0:03:00]}  c6 {[%clk 0:02:56]} 2. d4 {[%clk 0:03:00]}  d5 {[%clk 0:02:55]} 3. exd5 {[%clk 0:03:00]}  cxd5 {[%clk 0:02:54]} 4. Bd3 {[%clk 0:03:00]}  Nc6 {[%clk 0:02:53]} 5. c3 {[%clk 0:03:01]}  Nf6 {[%clk 0:02:50]} 6. Bf4 {[%clk 0:03:01]}  g6 {[%clk 0:02:47]} 7. Nf3 {[%clk 0:03:00]}  Bg7 {[%clk 0:02:46]} 8. O-O {[%clk 0:03:01]}  Bf5 {[%clk 0:02:46]} 9. Bxf5 {[%clk 0:03:00]}  gxf5 {[%clk 0:02:46]} 10. Nbd2 {[%clk 0:03:01]}  O-O {[%clk 0:02:46]} 11. Ne5 {[%clk 0:03:01]}  Ne4 {[%clk 0:02:43]} 12. Nxe4 {[%clk 0:03:01]}  fxe4 {[%clk 0:02:42]} 13. Qg4 {[%clk 0:03:02]}  Qc8 {[%clk 0:02:36]} 14. Qg3 {[%clk 0:03:02]}  Nxe5 {[%clk 0:02:34]} 15. Bxe5 {[%clk 0:03:03]}  f6 {[%clk 0:02:34]} 16. Bf4 {[%clk 0:03:03]}  Qf5 {[%clk 0:02:32]} 17. f3 {[%clk 0:03:03]}  Kh8 {[%clk 0:02:30]} 18. fxe4 {[%clk 0:03:03]}  Qxe4 {[%clk 0:02:23]} 19. Rae1 {[%clk 0:03:02]} 1-0

[Event "December 19 Late 2023"]
[Site "https://www.chess.com"]
[Date "2023.12.19"]
[Round "11"]
[White "D`Arruda, Ricardo D."]
[Black "Antunez Soler, Luis"]
[Result "0-1"]
[Board "45"]
[TimeControl "180+1"]
[WhiteFideId "100692"]
[BlackFideId "3513335"]
[WhiteElo "2544"]
[BlackElo "2154"]
[WhiteTeam "ARG"]
[BlackTeam "CUB"]
[WhiteClock "0:00:52"]
[BlackClock "0:01:05"]

1. d4 {[%clk 0:02:54]}  d5 {[%clk 0:02:59]} 2. Nf3 {[%clk 0:02:53]}  Nf6 {[%clk 0:03:00]} 3. c4 {[%clk 0:02:52]}  c6 {[%clk 0:03:00]} 4. e3 {[%clk 0:02:53]}  e6 {[%clk 0:03:00]} 5. Nc3 {[%clk 0:02:53]}  Nbd7 {[%clk 0:03:01]} 6. Bd3 {[%clk 0:02:53]}  Bd6 {[%clk 0:03:01]} 7. O-O {[%clk 0:02:52]}  O-O {[%clk 0:03:02]} 8. e4 {[%clk 0:02:52]}  dxc4 {[%clk 0:03:02]} 9. Bxc4 {[%clk 0:02:52]}  e5 {[%clk 0:03:03]} 10. Bg5 {[%clk 0:02:46]}  Qe7 {[%clk 0:02:59]} 11. Re1 {[%clk 0:02:41]}  Re8 {[%clk 0:02:47]} 12. Bb3 {[%clk 0:02:15]}  a6 {[%clk 0:01:50]} 13. Qd2 {[%clk 0:02:13]}  b5 {[%clk 0:01:45]} 14. Rad1 {[%clk 0:02:07]}  b4 {[%clk 0:01:25]} 15. dxe5 {[%clk 0:02:04]}  Bxe5 {[%clk 0:01:21]} 16. Na4 {[%clk 0:01:34]}  h6 {[%clk 0:01:20]} 17. Nxe5 {[%clk 0:01:30]}  Nxe5 {[%clk 0:01:13]} 18. Bh4 {[%clk 0:01:22]}  Bg4 {[%clk 0:01:12]} 19. Rc1 {[%clk 0:01:12]}  Rad8 {[%clk 0:01:10]} 20. Qf4 {[%clk 0:01:11]}  Nd3 {[%clk 0:01:06]} 21. Bxf6 {[%clk 0:01:10]}  Qxf6 {[%clk 0:01:06]} 22. Qxg4 {[%clk 0:01:02]}  Qxf2+ {[%clk 0:01:04]} 23. Kh1 {[%clk 0:00:52]}  Nxe1 {[%clk 0:01:05]} 0-1

[Event "December 19 Late 2023"]
[Site "https://www.chess.com"]
[Date "2023.12.19"]
[Round "11"]
[White "Spata, German"]
[Black "Sadovsky, Artem"]
[Result "1-0"]
[Board "46"]
[TimeControl "180+1"]
[WhiteFideId "113026"]
[BlackFideId "4155840"]
[WhiteElo "2260"]
[BlackElo "2314"]
[WhiteTeam "ARG"]
[BlackTeam "FID"]
[WhiteClock "0:00:05"]
[BlackClock "0:00:00"]

1. Nf3 {[%clk 0:02:41]}  g6 {[%clk 0:02:15]} 2. e4 {[%clk 0:02:40]}  Bg7 {[%clk 0:02:16]} 3. d4 {[%clk 0:02:41]}  d6 {[%clk 0:02:16]} 4. c3 {[%clk 0:02:41]}  e5 {[%clk 0:02:16]} 5. dxe5 {[%clk 0:02:40]}  dxe5 {[%clk 0:02:17]} 6. Qxd8+ {[%clk 0:02:40]}  Kxd8 {[%clk 0:02:18]} 7. Bc4 {[%clk 0:02:39]}  f6 {[%clk 0:02:19]} 8. a4 {[%clk 0:02:38]}  c6 {[%clk 0:02:16]} 9. b3 {[%clk 0:02:37]}  Nh6 {[%clk 0:02:15]} 10. O-O {[%clk 0:02:32]}  Kc7 {[%clk 0:02:14]} 11. Ba3 {[%clk 0:02:28]}  Bf8 {[%clk 0:02:14]} 12. Bb2 {[%clk 0:02:13]}  a5 {[%clk 0:02:14]} 13. Rd1 {[%clk 0:02:12]}  Nd7 {[%clk 0:02:12]} 14. Na3 {[%clk 0:02:08]}  Nc5 {[%clk 0:02:12]} 15. Nd2 {[%clk 0:01:59]}  Be6 {[%clk 0:02:12]} 16. Bxe6 {[%clk 0:01:57]}  Nxe6 {[%clk 0:02:11]} 17. f3 {[%clk 0:01:54]}  Bc5+ {[%clk 0:02:08]} 18. Kf1 {[%clk 0:01:53]}  Rhd8 {[%clk 0:02:08]} 19. Ndc4 {[%clk 0:01:46]}  b6 {[%clk 0:02:09]} 20. g3 {[%clk 0:01:39]}  Nf7 {[%clk 0:02:06]} 21. Ke2 {[%clk 0:01:35]}  Be7 {[%clk 0:01:50]} 22. Rxd8 {[%clk 0:01:25]}  Rxd8 {[%clk 0:01:40]} 23. Rd1 {[%clk 0:01:23]}  Nc5 {[%clk 0:01:40]} 24. Rxd8 {[%clk 0:01:22]}  Nxd8 {[%clk 0:01:41]} 25. Nd2 {[%clk 0:01:19]}  Nde6 {[%clk 0:01:37]} 26. Nac4 {[%clk 0:01:17]}  Nd8 {[%clk 0:01:07]} 27. Ba3 {[%clk 0:01:11]}  Ndb7 {[%clk 0:01:06]} 28. Bxc5 {[%clk 0:01:06]}  Bxc5 {[%clk 0:01:02]} 29. Nb2 {[%clk 0:01:01]}  b5 {[%clk 0:01:01]} 30. c4 {[%clk 0:00:56]}  Bd4 {[%clk 0:01:00]} 31. Nd3 {[%clk 0:00:48]}  Kb6 {[%clk 0:01:01]} 32. cxb5 {[%clk 0:00:34]}  cxb5 {[%clk 0:01:02]} 33. f4 {[%clk 0:00:32]}  Nd6 {[%clk 0:00:44]} 34. Nf3 {[%clk 0:00:17]}  Nxe4 {[%clk 0:00:43]} 35. fxe5 {[%clk 0:00:18]}  fxe5 {[%clk 0:00:42]} 36. Ndxe5 {[%clk 0:00:16]}  Bxe5 {[%clk 0:00:43]} 37. Nxe5 {[%clk 0:00:17]}  bxa4 {[%clk 0:00:43]} 38. bxa4 {[%clk 0:00:17]}  Nc3+ {[%clk 0:00:44]} 39. Kd3 {[%clk 0:00:16]}  Nxa4 {[%clk 0:00:45]} 40. Nf7 {[%clk 0:00:16]}  Kb5 {[%clk 0:00:42]} 41. Ng5 {[%clk 0:00:16]}  h5 {[%clk 0:00:40]} 42. Kc2 {[%clk 0:00:12]}  Kc4 {[%clk 0:00:36]} 43. Ne6 {[%clk 0:00:11]}  Nc3 {[%clk 0:00:10]} 44. Nf4 {[%clk 0:00:11]}  g5 {[%clk 0:00:08]} 45. Nxh5 {[%clk 0:00:11]}  a4 {[%clk 0:00:08]} 46. h4 {[%clk 0:00:06]}  g4 {[%clk 0:00:04]} 47. Nf6 {[%clk 0:00:05]}  a3 {[%clk 0:00:00]} 48. Nxg4 {[%clk 0:00:05]} 1-0

[Event "December 19 Late 2023"]
[Site "https://www.chess.com"]
[Date "2023.12.19"]
[Round "11"]
[White "Lin, Bryan Enming"]
[Black "Buchenau, Frank"]
[Result "1-0"]
[Board "48"]
[TimeControl "180+1"]
[WhiteFideId "30987121"]
[BlackFideId "4604350"]
[WhiteElo "2561"]
[BlackElo "2157"]
[WhiteTeam "USA"]
[BlackTeam "GER"]
[WhiteClock "0:01:57"]
[BlackClock "0:00:00"]

1. e4 {[%clk 0:02:59]}  e6 {[%clk 0:03:00]} 2. d4 {[%clk 0:02:59]}  d5 {[%clk 0:02:59]} 3. Nd2 {[%clk 0:03:00]}  c5 {[%clk 0:02:59]} 4. exd5 {[%clk 0:02:59]}  Qxd5 {[%clk 0:02:58]} 5. dxc5 {[%clk 0:02:59]}  Nf6 {[%clk 0:02:49]} 6. Ngf3 {[%clk 0:02:57]}  Bxc5 {[%clk 0:02:46]} 7. Bc4 {[%clk 0:02:57]}  Qd6 {[%clk 0:02:40]} 8. O-O {[%clk 0:02:56]}  O-O {[%clk 0:02:40]} 9. Qe2 {[%clk 0:02:56]}  Nc6 {[%clk 0:02:34]} 10. c3 {[%clk 0:02:56]}  Qc7 {[%clk 0:02:17]} 11. Bd3 {[%clk 0:02:53]}  b6 {[%clk 0:01:41]} 12. Ne4 {[%clk 0:02:53]}  Be7 {[%clk 0:01:17]} 13. Bg5 {[%clk 0:02:50]}  Nxe4 {[%clk 0:01:10]} 14. Qxe4 {[%clk 0:02:49]}  g6 {[%clk 0:00:55]} 15. Qh4 {[%clk 0:02:49]}  f6 {[%clk 0:00:44]} 16. Bh6 {[%clk 0:02:48]}  Rd8 {[%clk 0:00:40]} 17. Bc4 {[%clk 0:02:45]}  Na5 {[%clk 0:00:31]} 18. Be2 {[%clk 0:02:40]}  e5 {[%clk 0:00:27]} 19. b4 {[%clk 0:02:35]}  Nb7 {[%clk 0:00:26]} 20. Bc4+ {[%clk 0:02:18]}  Kh8 {[%clk 0:00:22]} 21. Rad1 {[%clk 0:02:18]}  Nd6 {[%clk 0:00:20]} 22. Bd5 {[%clk 0:02:15]}  Nf5 {[%clk 0:00:19]} 23. Qe4 {[%clk 0:02:08]}  Rxd5 {[%clk 0:00:13]} 24. Qxd5 {[%clk 0:02:07]}  Bb7 {[%clk 0:00:13]} 25. Qd7 {[%clk 0:02:07]}  Qxd7 {[%clk 0:00:11]} 26. Rxd7 {[%clk 0:02:08]}  Bxf3 {[%clk 0:00:11]} 27. gxf3 {[%clk 0:02:07]}  Rc8 {[%clk 0:00:09]} 28. Bd2 {[%clk 0:02:05]}  Bf8 {[%clk 0:00:08]} 29. Rxa7 {[%clk 0:02:05]}  Nh4 {[%clk 0:00:08]} 30. Be3 {[%clk 0:02:00]}  Rxc3 {[%clk 0:00:06]} 31. Ra8 {[%clk 0:01:59]}  Kg7 {[%clk 0:00:06]} 32. Bxb6 {[%clk 0:01:58]}  Nxf3+ {[%clk 0:00:06]} 33. Kg2 {[%clk 0:01:58]}  Nh4+ {[%clk 0:00:06]} 34. Kh1 {[%clk 0:01:58]}  Bxb4 {[%clk 0:00:03]} 35. a4 {[%clk 0:01:58]}  Ra3 {[%clk 0:00:03]} 36. a5 {[%clk 0:01:57]}  Nf3 {[%clk 0:00:00]} 37. a6 {[%clk 0:01:57]} 1-0

[Event "December 19 Late 2023"]
[Site "https://www.chess.com"]
[Date "2023.12.19"]
[Round "11"]
[White "Krzywda, Andrzej"]
[Black "Mokshanov, Alexey"]
[Result "0-1"]
[Board "53"]
[TimeControl "180+1"]
[WhiteFideId "1114565"]
[BlackFideId "24121657"]
[WhiteElo "2130"]
[BlackElo "2278"]
[WhiteTeam "POL"]
[BlackTeam "RUS"]
[WhiteClock "0:00:00"]
[BlackClock "0:01:19"]

1. e4 {[%clk 0:03:00]}  e6 {[%clk 0:02:59]} 2. d4 {[%clk 0:02:59]}  d5 {[%clk 0:03:00]} 3. Nc3 {[%clk 0:03:00]}  Nf6 {[%clk 0:03:00]} 4. e5 {[%clk 0:03:00]}  Nfd7 {[%clk 0:03:01]} 5. f4 {[%clk 0:03:01]}  c5 {[%clk 0:03:01]} 6. Nf3 {[%clk 0:03:01]}  Nc6 {[%clk 0:03:02]} 7. Be3 {[%clk 0:03:02]}  Be7 {[%clk 0:03:02]} 8. Qd2 {[%clk 0:03:01]}  O-O {[%clk 0:03:03]} 9. dxc5 {[%clk 0:03:01]}  Bxc5 {[%clk 0:03:03]} 10. O-O-O {[%clk 0:02:53]}  Qa5 {[%clk 0:03:03]} 11. a3 {[%clk 0:02:43]}  Rb8 {[%clk 0:03:02]} 12. Bxc5 {[%clk 0:02:42]}  Nxc5 {[%clk 0:03:01]} 13. Qe3 {[%clk 0:02:41]}  Na4 {[%clk 0:03:00]} 14. Nb5 {[%clk 0:02:08]}  Bd7 {[%clk 0:02:54]} 15. Kb1 {[%clk 0:01:34]}  Nxe5 {[%clk 0:02:38]} 16. Nxe5 {[%clk 0:01:34]}  Bxb5 {[%clk 0:02:38]} 17. c4 {[%clk 0:01:24]}  Bxc4 {[%clk 0:02:24]} 18. Bxc4 {[%clk 0:01:09]}  dxc4 {[%clk 0:02:24]} 19. Nxc4 {[%clk 0:01:00]}  Qb5 {[%clk 0:02:21]} 20. Rc1 {[%clk 0:00:45]}  Rbc8 {[%clk 0:02:19]} 21. Qe5 {[%clk 0:00:41]}  Rc5 {[%clk 0:02:13]} 22. Qd4 {[%clk 0:00:18]}  Rfc8 {[%clk 0:02:00]} 23. Rhd1 {[%clk 0:00:18]}  h6 {[%clk 0:01:58]} 24. Ne5 {[%clk 0:00:14]}  Nc3+ {[%clk 0:01:39]} 25. Rxc3 {[%clk 0:00:11]}  Rxc3 {[%clk 0:01:39]} 26. Nf3 {[%clk 0:00:02]}  R3c5 {[%clk 0:01:26]} 27. Qe3 {[%clk 0:00:02]}  Rd5 {[%clk 0:01:22]} 28. Nd4 {[%clk 0:00:02]}  Qd7 {[%clk 0:01:21]} 29. Rd2 {[%clk 0:00:02]}  Rd8 {[%clk 0:01:20]} 30. f5 {[%clk 0:00:01]}  Rxd4 {[%clk 0:01:20]} 31. Rxd4 {[%clk 0:00:00]}  Qxd4 {[%clk 0:01:19]} 0-1